[Event "FIDE WCCC G10 2018"]
[Site "Santiago de Compostela"]
[Date "2018.11.09"]
[Round "5"]
[White "Ho, Ngoc Vy"]
[Black "Petrosyan, Ani"]
[Result "1-0"]
[ECO "A41"]
[WhiteElo "1275"]
[BlackElo "1442"]
[Annotator "NA RC"]
[PlyCount "51"]
[EventDate "2018.11.04"]
[EventType "swiss"]
[EventCountry "ESP"]
[SourceTitle "playchess.com"]
[Source "ChessBase"]
[SourceQuality "1"]
[TimeControl "40/5400+30:1800+30"]

1. d4 {[%emt 0:00:00]} d6 {[%emt 0:00:00]} 2. c4 {[%emt 0:00:38]} e5 {[%emt 0:00:00]} 3. Nc3 {[%emt 0:04:40]} g6 {[%emt 0:04:35]} 4. Nf3 {[%emt 0:06:00]} Bg7 {[%emt 0:07:32]} 5. dxe5 {[%emt 0:12:38]} dxe5 {[%emt 0:00:23]} 6. Qxd8+ {[%emt 0:00:29]} Kxd8 {[%emt 0:00:07]} 7. e4 {[%emt 0:01:42]} c6 {[%emt 0:00:25]} 8. Be3 {[%emt 0:00:31]} Kc7 {[%emt 0:06:55]} 9. h3 Ne7 {[%emt 0:02:12]} 10. Bc5 {[%emt 0:05:56]} Re8 {[%emt 0:27:12]} 11. Rd1 {[%emt 0:01:30]} Nd7 {[%emt 0:03:36]} 12. Bd6+ {[%emt 0:02:05]} Kb6 {[%emt 0:01:12]} 13. Ng5 {[%emt 0:01:08]} h6 {[%emt 0:12:18]} 14. Nxf7 {[%emt 0:07:09]} Ng8 {[%emt 0:00:48]} 15. b4 {[%emt 0:03:04]} a6 {[%emt 0:01:53]} 16. c5+ {[%emt 0:03:52]} Ka7 {[%emt 0:04:40]} 17. Bc7 {[%emt 0:01:36]} Re7 {[%emt 0:08:53]} 18. Bc4 {[%emt 0:07:25]} Ngf6 {[%emt 0:13:18]} 19. Nd6 {[%emt 0:00:32]} Nxc5 {[%emt 0:01:21]} 20. Bd8 {[%emt 0:01:04]} Rd7 {[%emt 0:00:41]} 21. Bxf6 {[%emt 0:00:20]} Bxf6 {[%emt 0:01:23]} 22. bxc5 {[%emt 0:00:10]} Rd8 {[%emt 0:00:53]} 23. O-O {[%emt 0:00:44]} Be7 {[%emt 0:00:37]} 24. Nf7 {[%emt 0:01:43]} Re8 {[%emt 0:00:35]} 25. Na4 {[%emt 0:00:50]} Bd7 {[%emt 0:00:27]} 26. Rxd7 {[%emt 0:00:29]} 1-0

[Event "FIDE WCCC G10 2018"]
[Site "Santiago de Compostela"]
[Date "2018.11.10"]
[Round "6"]
[White "Edithso, Samantha"]
[Black "Chen, Yining"]
[Result "1-0"]
[ECO "B40"]
[WhiteElo "1879"]
[BlackElo "1457"]
[Annotator "NA"]
[PlyCount "85"]
[EventDate "2018.11.04"]
[EventType "swiss"]
[EventCountry "ESP"]
[SourceTitle "playchess.com"]
[Source "ChessBase"]
[SourceQuality "1"]
[TimeControl "40/5400+30:1800+30"]

1. e4 {[%emt 0:00:00]} c5 {[%emt 0:00:00]} 2. Nf3 {[%emt 0:00:00]} e6 {[%emt 0:00:00]} 3. d4 {[%emt 0:00:00]} cxd4 {[%emt 0:00:00]} 4. c3 {[%emt 0:00:00]} Nf6 {[%emt 0:00:00]} 5. e5 {[%emt 0:00:03]} Nd5 {[%emt 0:00:00]} 6. cxd4 {[%emt 0:01:02]} d6 {[%emt 0:00:16]} 7. Bb5+ {[%emt 0:00:30]} Bd7 {[%emt 0:00:42]} 8. Bc4 {[%emt 0:01:36]} Qc7 {[%emt 0:07:15]} 9. Bxd5 {[%emt 0:00:25]} exd5 {[%emt 0:00:07]} 10. O-O {[%emt 0:00:15]} Be7 {[%emt 0:04:55]} 11. Nc3 $16 {[%emt 0:00:19]} Be6 {[%emt 0:02:45]} 12. Bf4 {[%emt 0:00:32]} Qd7 {[%emt 0:05:04]} 13. Rc1 {[%emt 0:01:19]} a6 {[%emt 0:03:18]} 14. Qb3 {[%emt 0:01:44]} Nc6 {[%emt 0:06:37]} 15. exd6 {[%emt 0:02:46]} Bxd6 {[%emt 0:00:34]} 16. Bxd6 {[%emt 0:00:34]} Qxd6 {[%emt 0:00:07]} 17. Qxb7 {[%emt 0:00:18]} O-O {[%emt 0:00:51]} 18. Na4 {[%emt 0:01:47]} Na5 {[%emt 0:08:42]} 19. Qc7 {[%emt 0:01:51]} Qb4 {[%emt 0:01:21]} 20. b3 {[%emt 0:03:58]} Nb7 {[%emt 0:12:04]} 21. Nb6 {[%emt 0:06:01]} Rab8 {[%emt 0:00:54]} 22. Ne5 {[%emt 0:01:55]} Nd6 {[%emt 0:07:35]} 23. Nbd7 {[%emt 0:21:34]} Rbc8 {[%emt 0:13:32]} 24. Qb6 {[%emt 0:00:53]} Qxb6 {[%emt 0:01:27]} 25. Nxb6 {[%emt 0:00:07]} Rxc1 {[%emt 0:00:43]} 26. Rxc1 {[%emt 0:00:03]} Nb5 {[%emt 0:01:08]} 27. Nc6 {[%emt 0:00:28]} Re8 {[%emt 0:03:34]} 28. f3 {[%emt 0:00:26]} f6 {[%emt 0:02:22]} 29. Kf2 {[%emt 0:01:09]} Kf7 {[%emt 0:00:40]} 30. Rc5 {[%emt 0:01:59]} Nc7 {[%emt 0:01:08]} 31. Nd8+ {[%emt 0:03:56]} Rxd8 {[%emt 0:00:37]} 32. Rxc7+ {[%emt 0:00:07]} Kg6 {[%emt 0:00:22]} 33. Rc6 {[%emt 0:01:10]} Bf7 {[%emt 0:01:39]} 34. Na4 {[%emt 0:00:32]} Ra8 {[%emt 0:01:14]} 35. Nc5 {[%emt 0:00:46]} a5 {[%emt 0:00:29]} 36. Nd3 {[%emt 0:00:21]} Kh6 {[%emt 0:02:45]} 37. g4 {[%emt 0:00:31]} Bg6 {[%emt 0:00:56]} 38. Nf4 {[%emt 0:00:42]} Bb1 {[%emt 0:00:42]} 39. h4 {[%emt 0:00:16]} g6 {[%emt 0:02:07]} 40. Ne6 {[%emt 0:00:00]} Bxa2 {[%emt 0:00:00]} 41. g5+ {[%emt 0:02:45]} Kh5 {[%emt 0:02:59]} 42. Rc7 {[%emt 0:00:45]} Rh8 {[%emt 0:00:34]} 43. gxf6 {[%emt 0:00:17]} 1-0

[Event "FIDE WCCC G10 2018"]
[Site "Santiago de Compostela"]
[Date "2018.11.10"]
[Round "6"]
[White "Zhapova, Yana"]
[Black "Qu, Greta"]
[Result "1/2-1/2"]
[ECO "B36"]
[WhiteElo "1821"]
[BlackElo "1360"]
[Annotator "NA"]
[PlyCount "87"]
[EventDate "2018.11.04"]
[EventType "swiss"]
[EventCountry "ESP"]
[SourceTitle "playchess.com"]
[Source "ChessBase"]
[SourceQuality "1"]
[TimeControl "40/5400+30:1800+30"]

1. e4 {[%emt 0:00:00]} c5 {[%emt 0:00:00]} 2. Nf3 {[%emt 0:00:00]} Nc6 {[%emt 0:00:00]} 3. d4 {[%emt 0:00:00]} cxd4 {[%emt 0:00:00]} 4. Nxd4 {[%emt 0:00:00]} g6 {[%emt 0:00:07]} 5. c4 {[%emt 0:00:37]} Nf6 {[%emt 0:00:12]} 6. Nc3 {[%emt 0:00:23]} Nxd4 {[%emt 0:00:17]} 7. Qxd4 {[%emt 0:00:41]} d6 {[%emt 0:00:25]} 8. Be2 {[%emt 0:09:34]} Bg7 {[%emt 0:00:26]} 9. Be3 {[%emt 0:00:50]} O-O {[%emt 0:00:07]} 10. Qd2 {[%emt 0:00:11]} Be6 $14 {[%emt 0:04:45] LiveBook: 782 Games} 11. O-O {[%emt 0:01:40]} Qa5 {[%emt 0:00:51]} 12. Rac1 {[%emt 0:02:03]} a6 {[%emt 0:01:07]} 13. f3 {[%emt 0:07:05]} Rfc8 {[%emt 0:04:13]} 14. Nd5 {[%emt 0:22:11]} Qxd2 {[%emt 0:00:37]} 15. Bxd2 {[%emt 0:00:02]} Nxd5 {[%emt 0:02:59]} 16. cxd5 {[%emt 0:01:03]} Bd7 {[%emt 0:01:55]} 17. Be3 {[%emt 0:04:00]} Bb5 {[%emt 0:14:04]} 18. Bxb5 {[%emt 0:03:38]} axb5 {[%emt 0:00:45]} 19. Rxc8+ {[%emt 0:01:15]} Rxc8 {[%emt 0:00:06]} 20. Rc1 {[%emt 0:00:40]} Rxc1+ {[%emt 0:00:56]} 21. Bxc1 {[%emt 0:00:06]} Kf8 {[%emt 0:00:49]} 22. b3 {[%emt 0:02:41]} Ke8 {[%emt 0:03:09]} 23. Be3 {[%emt 0:00:58]} Kd7 {[%emt 0:00:08]} 24. Kf2 {[%emt 0:00:59]} Bc3 {[%emt 0:00:24]} 25. Ke2 {[%emt 0:01:36]} Bb4 {[%emt 0:00:32]} 26. Kd3 {[%emt 0:02:43]} Bc5 {[%emt 0:00:56]} 27. Bd2 {[%emt 0:01:02]} Kc7 {[%emt 0:00:14]} 28. Ba5+ Bb6 {[%emt 0:04:47]} 29. Bxb6+ {[%emt 0:19:18]} Kxb6 {[%emt 0:00:08]} 30. Kd4 {[%emt 0:00:04]} Ka5 {[%emt 0:01:38]} 31. a3 {[%emt 0:00:19]} Kb6 {[%emt 0:03:20]} 32. f4 {[%emt 0:00:49]} Kc7 {[%emt 0:00:59]} 33. g4 {[%emt 0:00:54]} Kd7 {[%emt 0:06:34]} 34. e5 {[%emt 0:09:27]} Kc7 {[%emt 0:00:33]} 35. Ke4 {[%emt 0:05:03]} h6 {[%emt 0:01:22]} 36. h4 {[%emt 0:02:42]} Kd7 {[%emt 0:01:00]} 37. f5 {[%emt 0:02:25]} dxe5 {[%emt 0:00:56]} 38. Kxe5 {[%emt 0:00:06]} f6+ {[%emt 0:00:24]} 39. Kd4 {[%emt 0:00:23]} gxf5 {[%emt 0:00:25]} 40. gxf5 {[%emt 0:00:00]} Kd6 {[%emt 0:00:00]} 41. b4 {[%emt 0:00:43]} h5 {[%emt 0:00:38]} 42. Ke4 {[%emt 0:00:07]} b6 {[%emt 0:00:08]} 43. Kd4 {[%emt 0:00:11]} Kc7 {[%emt 0:00:09]} 44. Ke4 {[%emt 0:00:17]} 1/2-1/2

[Event "FIDE WCCC G10 2018"]
[Site "Santiago de Compostela"]
[Date "2018.11.10"]
[Round "6"]
[White "Shvedova, Alexandra"]
[Black "Unurzul, Davaakhuu"]
[Result "1/2-1/2"]
[ECO "C54"]
[WhiteElo "1782"]
[BlackElo "1342"]
[Annotator "NA"]
[PlyCount "107"]
[EventDate "2018.11.04"]
[EventType "swiss"]
[EventCountry "ESP"]
[SourceTitle "playchess.com"]
[Source "ChessBase"]
[SourceQuality "1"]
[TimeControl "40/5400+30:1800+30"]

1. e4 {[%emt 0:00:00]} e5 {[%emt 0:00:00]} 2. Nf3 {[%emt 0:00:00]} Nc6 {[%emt 0:00:00]} 3. Bc4 {[%emt 0:00:00]} Bc5 {[%emt 0:00:16]} 4. c3 {[%emt 0:00:02]} Nf6 {[%emt 0:00:26]} 5. d4 {[%emt 0:00:06]} exd4 {[%emt 0:00:16]} 6. e5 {[%emt 0:00:04]} d5 {[%emt 0:00:21]} 7. Bb5 {[%emt 0:00:08]} Ne4 {[%emt 0:01:21]} 8. cxd4 {[%emt 0:00:11]} Bb6 {[%emt 0:01:58]} 9. Nc3 {[%emt 0:00:40]} Ba5 {[%emt 0:01:42]} 10. Qa4 {[%emt 0:09:01]} Bxc3+ {[%emt 0:02:59]} 11. bxc3 {[%emt 0:01:07]} Bd7 {[%emt 0:02:41]} 12. Qb3 {[%emt 0:04:49]} O-O {[%emt 0:06:59]} 13. O-O {[%emt 0:03:42]} Bg4 {[%emt 0:04:19]} 14. Ne1 {[%emt 0:05:26]} Ng5 {[%emt 0:38:18]} 15. Bxg5 {[%emt 0:11:00]} Qxg5 {[%emt 0:00:15]} 16. Qxd5 {[%emt 0:00:38]} Na5 {[%emt 0:04:54]} 17. Bd3 {[%emt 0:03:57]} Nc6 {[%emt 0:01:56]} 18. f4 {[%emt 0:01:43]} Qh4 {[%emt 0:01:01]} 19. h3 {[%emt 0:03:14]} Be6 {[%emt 0:00:16]} 20. Qe4 {[%emt 0:00:33]} g6 {[%emt 0:02:38]} 21. d5 {[%emt 0:05:19]} Bf5 {[%emt 0:00:13]} 22. Qe3 {[%emt 0:00:16]} Ne7 {[%emt 0:00:38]} 23. c4 {[%emt 0:00:24]} Bxd3 {[%emt 0:01:20]} 24. Qxd3 {[%emt 0:00:31]} Nf5 {[%emt 0:00:28]} 25. Kh2 {[%emt 0:01:47]} c5 {[%emt 0:02:48]} 26. g3 {[%emt 0:01:23]} Qd8 {[%emt 0:00:36]} 27. g4 {[%emt 0:00:12]} Nd4 {[%emt 0:00:33]} 28. Nf3 {[%emt 0:02:45]} Qb6 {[%emt 0:00:49]} 29. Nxd4 {[%emt 0:01:23]} cxd4 {[%emt 0:00:12]} 30. Rfb1 {[%emt 0:00:49]} Qa6 {[%emt 0:01:33]} 31. Qxd4 {[%emt 0:00:06]} Rac8 {[%emt 0:00:10]} 32. Rc1 {[%emt 0:00:40]} Qa3 {[%emt 0:00:17]} 33. Qc3 {[%emt 0:00:30]} Qc5 {[%emt 0:00:11]} 34. Qd2 {[%emt 0:03:13]} Qa3 {[%emt 0:00:42]} 35. Rc3 {[%emt 0:07:04]} Qb4 {[%emt 0:00:07]} 36. a3 {[%emt 0:00:41]} Qa4 {[%emt 0:00:15]} 37. c5 {[%emt 0:01:11]} Rfd8 {[%emt 0:00:44]} 38. Qd3 {[%emt 0:02:13]} Qxf4+ {[%emt 0:00:14]} 39. Kg2 {[%emt 0:00:50]} Qxe5 {[%emt 0:00:08]} 40. Rd1 {[%emt 0:00:00]} Rxd5 {[%emt 0:00:00]} 41. Qxd5 {[%emt 0:02:53]} Qxc3 {[%emt 0:00:28]} 42. Rf1 {[%emt 0:01:11]} Rf8 {[%emt 0:01:06]} 43. Rf3 {[%emt 0:01:25]} Qb2+ {[%emt 0:00:46]} 44. Kg3 {[%emt 0:00:34]} Qc1 {[%emt 0:00:30]} 45. Kg2 {[%emt 0:01:49]} Qb2+ {[%emt 0:00:46]} 46. Kg3 {[%emt 0:00:06]} Kg7 {[%emt 0:01:09]} 47. Rb3 {[%emt 0:03:06]} Qc1 {[%emt 0:00:53]} 48. Rxb7 {[%emt 0:07:31]} Qxa3+ {[%emt 0:00:19]} 49. Kg2 {[%emt 0:01:25]} Qa6 {[%emt 0:01:07]} 50. c6 {[%emt 0:01:52]} Qe2+ {[%emt 0:00:17]} 51. Kg1 {[%emt 0:00:18]} Qe1+ {[%emt 0:00:09]} 52. Kg2 {[%emt 0:00:04]} Qe2+ {[%emt 0:00:07]} 53. Kg1 {[%emt 0:00:10]} Qe1+ {[%emt 0:02:21]} 54. Kg2 {[%emt 0:00:05]} 1/2-1/2

[Event "FIDE WCCC G10 2018"]
[Site "Santiago de Compostela"]
[Date "2018.11.10"]
[Round "6"]
[White "Khamdamova, Afruza"]
[Black "Chekhani, Anna"]
[Result "1/2-1/2"]
[ECO "B85"]
[WhiteElo "1691"]
[BlackElo "1288"]
[Annotator "NA RC"]
[PlyCount "214"]
[EventDate "2018.11.04"]
[EventType "swiss"]
[EventCountry "ESP"]
[SourceTitle "playchess.com"]
[Source "ChessBase"]
[SourceQuality "1"]
[TimeControl "40/5400+30:1800+30"]

1. e4 {[%emt 0:00:00]} c5 {[%emt 0:00:00]} 2. Nf3 {[%emt 0:00:00]} e6 {[%emt 0:00:00]} 3. d4 {[%emt 0:00:00]} cxd4 {[%emt 0:00:00]} 4. Nxd4 {[%emt 0:00:00]} Nf6 {[%emt 0:00:20]} 5. Nc3 {[%emt 0:00:00]} d6 {[%emt 0:00:22]} 6. Be2 {[%emt 0:00:00]} a6 {[%emt 0:00:40]} 7. O-O {[%emt 0:00:08]} Qc7 {[%emt 0:01:35]} 8. Be3 {[%emt 0:00:11]} b5 {[%emt 0:01:30]} 9. a3 {[%emt 0:01:29]} Bb7 {[%emt 0:01:02]} 10. Bf3 {[%emt 0:02:23]} Nbd7 {[%emt 0:01:38]} 11. Bg5 {[%emt 0:08:30]} h6 {[%emt 0:03:40]} 12. Bxf6 {[%emt 0:05:10]} Nxf6 {[%emt 0:00:07]} 13. Re1 {[%emt 0:06:49]} Be7 {[%emt 0:01:09]} 14. a4 {[%emt 0:02:44]} b4 {[%emt 0:03:35]} 15. Na2 {[%emt 0:00:05]} d5 {[%emt 0:03:25]} 16. exd5 {[%emt 0:03:07]} Bxd5 {[%emt 0:02:14]} 17. Bxd5 {[%emt 0:00:13]} Nxd5 {[%emt 0:03:41]} 18. Nf5 {[%emt 0:03:50]} O-O {[%emt 0:07:15]} 19. Nxe7+ {[%emt 0:00:11]} Nxe7 {[%emt 0:00:10]} 20. Nxb4 {[%emt 0:00:23]} Rfd8 {[%emt 0:07:09]} 21. Qe2 {[%emt 0:01:03]} Nf5 {[%emt 0:05:29]} 22. c3 {[%emt 0:01:07]} a5 {[%emt 0:03:38]} 23. Nd3 {[%emt 0:01:21]} Rab8 {[%emt 0:05:39]} 24. Ne5 {[%emt 0:08:33]} Rd6 {[%emt 0:12:54]} 25. Nc4 {[%emt 0:09:05]} Rc6 {[%emt 0:03:36]} 26. Na3 {[%emt 0:00:08]} Nd6 {[%emt 0:03:23]} 27. Red1 {[%emt 0:04:56]} Rcb6 {[%emt 0:03:29]} 28. Rxd6 {[%emt 0:05:02]} Qxd6 {[%emt 0:08:21]} 29. Nc4 {[%emt 0:00:05]} Qc7 {[%emt 0:01:02]} 30. Nxb6 {[%emt 0:00:05]} Qxb6 {[%emt 0:00:25]} 31. Rb1 {[%emt 0:00:10]} Qb3 {[%emt 0:00:44]} 32. Qe5 {[%emt 0:00:43]} Rd8 {[%emt 0:00:48]} 33. h3 {[%emt 0:00:51]} Qc2 {[%emt 0:02:51]} 34. Re1 {[%emt 0:00:55]} Qxb2 {[%emt 0:00:59]} 35. Qxa5 {[%emt 0:00:16]} Rc8 {[%emt 0:06:02]} 36. Re3 {[%emt 0:00:14]} Qb1+ {[%emt 0:00:30]} 37. Kh2 {[%emt 0:00:05]} Qb8+ {[%emt 0:01:28]} 38. Rg3 {[%emt 0:01:42]} Qf4 {[%emt 0:01:05]} 39. Qb4 {[%emt 0:03:15]} Rc4 {[%emt 0:03:29]} 40. Qb2 {[%emt 0:00:00]} Rxa4 {[%emt 0:00:00]} 41. c4 {[%emt 0:01:31]} g6 {[%emt 0:14:44]} 42. c5 {[%emt 0:00:14]} Rc4 {[%emt 0:01:44]} 43. Qa3 {[%emt 0:09:20]} Qxf2 {[%emt 0:03:14]} 44. c6 {[%emt 0:00:24]} Qc5 {[%emt 0:02:52]} 45. Qa8+ {[%emt 0:00:14]} Kg7 {[%emt 0:01:02]} 46. Qa1+ {[%emt 0:00:11]} e5 {[%emt 0:01:52]} 47. Rf3 {[%emt 0:07:01]} Rc1 {[%emt 0:01:57]} 48. Qa2 {[%emt 0:02:26]} f6 {[%emt 0:03:15]} 49. Ra3 {[%emt 0:02:15]} h5 {[%emt 0:04:44]} 50. c7 {[%emt 0:05:39]} Qg1+ {[%emt 0:00:30]} 51. Kg3 {[%emt 0:00:05]} Rxc7 {[%emt 0:01:27]} 52. h4 {[%emt 0:05:36]} Qe1+ {[%emt 0:00:26]} 53. Kh3 {[%emt 0:01:02]} Rc3+ {[%emt 0:00:53]} 54. Rxc3 {[%emt 0:00:06]} Qxc3+ {[%emt 0:00:03]} 55. Kh2 {[%emt 0:00:06]} Qd4 {[%emt 0:00:19]} 56. g3 {[%emt 0:00:34]} e4 {[%emt 0:00:08]} 57. Qa3 {[%emt 0:00:20]} Qf2+ {[%emt 0:00:18]} 58. Kh3 {[%emt 0:00:27]} Qf5+ {[%emt 0:00:50]} 59. Kh2 {[%emt 0:00:45]} Qf2+ {[%emt 0:00:04]} 60. Kh3 {[%emt 0:00:05]} Qf1+ {[%emt 0:00:04]} 61. Kh2 {[%emt 0:00:11]} Qf2+ {[%emt 0:00:08]} 62. Kh3 {[%emt 0:00:05]} Qf5+ {[%emt 0:00:04]} 63. Kh2 {[%emt 0:00:06]} Qd7 {[%emt 0:00:43]} 64. Qe3 {[%emt 0:01:10]} f5 {[%emt 0:00:28]} 65. Qc3+ {[%emt 0:00:06]} Kh7 {[%emt 0:00:32]} 66. Qe5 {[%emt 0:00:12]} Qg7 {[%emt 0:01:09]} 67. Qe6 {[%emt 0:00:12]} Qa7 {[%emt 0:01:05]} 68. Kg2 {[%emt 0:00:40]} Qb7 {[%emt 0:01:48]} 69. Kg1 {[%emt 0:01:45]} Qc7 {[%emt 0:01:26]} 70. Kg2 {[%emt 0:00:15]} Kg7 {[%emt 0:00:37]} 71. Kh2 {[%emt 0:00:47]} Qf7 {[%emt 0:00:38]} 72. Qe5+ {[%emt 0:00:08]} Qf6 {[%emt 0:00:10]} 73. Qc7+ {[%emt 0:00:12]} Kh6 {[%emt 0:01:09]} 74. Qf4+ {[%emt 0:00:08]} g5 {[%emt 0:00:09]} 75. hxg5+ {[%emt 0:00:10]} Qxg5 {[%emt 0:00:08]} 76. Qd6+ {[%emt 0:00:05]} Qg6 {[%emt 0:00:25]} 77. Qf4+ {[%emt 0:00:48]} Kh7 {[%emt 0:00:24]} 78. Qc7+ {[%emt 0:01:00]} Qg7 {[%emt 0:00:32]} 79. Qf4 {[%emt 0:00:08]} Qf7 {[%emt 0:00:41]} 80. Kg2 {[%emt 0:00:55]} Kg6 {[%emt 0:01:06]} 81. Kf2 {[%emt 0:01:01]} Qe6 {[%emt 0:00:32]} 82. Ke2 {[%emt 0:01:03]} Qa2+ {[%emt 0:00:36]} 83. Kf1 {[%emt 0:00:14]} Qc4+ {[%emt 0:00:17]} 84. Kg1 {[%emt 0:00:18]} Qe6 {[%emt 0:00:45]} 85. Kf2 {[%emt 0:00:11]} Qa2+ {[%emt 0:00:24]} 86. Kg1 {[%emt 0:00:06]} Qa7+ {[%emt 0:00:31]} 87. Kf1 {[%emt 0:00:14]} Qd7 {[%emt 0:00:15]} 88. Ke1 {[%emt 0:00:24]} Qd3 {[%emt 0:00:49]} 89. Kf2 {[%emt 0:00:23]} Qd4+ {[%emt 0:00:34]} 90. Kg2 {[%emt 0:00:14]} Qb2+ {[%emt 0:00:23]} 91. Kg1 {[%emt 0:00:27]} Qb1+ {[%emt 0:00:13]} 92. Kf2 {[%emt 0:00:36]} Qc2+ {[%emt 0:00:11]} 93. Kg1 {[%emt 0:00:09]} Qd1+ {[%emt 0:00:12]} 94. Kg2 {[%emt 0:00:23]} Qe2+ {[%emt 0:00:04]} 95. Kg1 {[%emt 0:00:06]} Qe1+ {[%emt 0:01:00]} 96. Kg2 {[%emt 0:00:07]} Qe2+ {[%emt 0:00:42]} 97. Kg1 {[%emt 0:00:05]} Qd3 {[%emt 0:01:14]} 98. Kf2 {[%emt 0:00:33]} Qd4+ {[%emt 0:00:32]} 99. Ke2 {[%emt 0:00:32]} Qd3+ {[%emt 0:00:06]} 100. Kf2 {[%emt 0:00:06]} Qc2+ {[%emt 0:00:18]} 101. Kg1 {[%emt 0:00:09]} Qd1+ {[%emt 0:01:03]} 102. Kg2 {[%emt 0:00:14]} Qe2+ {[%emt 0:00:32]} 103. Kg1 {[%emt 0:00:06]} Qf3 {[%emt 0:00:31]} 104. Qxf3 {[%emt 0:00:55]} exf3 {[%emt 0:00:04]} 105. Kf2 {[%emt 0:00:05]} h4 {[%emt 0:00:39]} 106. gxh4 {[%emt 0:00:12]} Kh5 {[%emt 0:00:37]} 107. Kxf3 {[%emt 0:00:07]} Kxh4 {[%emt 0:00:06] Ke4} 1/2-1/2

[Event "FIDE WCCC G10 2018"]
[Site "Santiago de Compostela"]
[Date "2018.11.10"]
[Round "6"]
[White "Zhou, Yafei"]
[Black "Kleymenova, Valeria"]
[Result "1-0"]
[ECO "D11"]
[WhiteElo "1648"]
[BlackElo "1773"]
[Annotator "NA"]
[PlyCount "81"]
[EventDate "2018.11.04"]
[EventType "swiss"]
[EventCountry "ESP"]
[SourceTitle "playchess.com"]
[Source "ChessBase"]
[SourceQuality "1"]
[TimeControl "40/5400+30:1800+30"]

1. d4 {[%emt 0:00:00]} d5 {[%emt 0:00:00]} 2. c4 {[%emt 0:00:00]} c6 {[%emt 0:00:00]} 3. Nf3 {[%emt 0:00:00]} e6 {[%emt 0:00:05]} 4. Bg5 {[%emt 0:00:00]} Be7 {[%emt 0:00:56]} 5. Bxe7 {[%emt 0:00:01]} Qxe7 {[%emt 0:00:51]} 6. e3 {[%emt 0:00:17]} f5 {[%emt 0:00:31]} 7. Nc3 {[%emt 0:01:12]} Nf6 {[%emt 0:00:58]} 8. Bd3 {[%emt 0:00:29]} O-O {[%emt 0:00:36]} 9. O-O {[%emt 0:02:17]} Nbd7 {[%emt 0:02:47]} 10. Qb3 {[%emt 0:01:54]} Kh8 {[%emt 0:01:28]} 11. cxd5 {[%emt 0:03:02]} cxd5 {[%emt 0:01:01]} 12. Rac1 {[%emt 0:01:21]} Ne4 {[%emt 0:04:26]} 13. Ne2 {[%emt 0:04:22]} Ndf6 {[%emt 0:12:24]} 14. Rc2 {[%emt 0:06:36]} Nd7 {[%emt 0:11:05]} 15. Rfc1 {[%emt 0:08:42]} Qd6 {[%emt 0:06:09]} 16. Bb5 {[%emt 0:03:39]} Nb6 {[%emt 0:08:18]} 17. Ne5 {[%emt 0:03:52]} Ng5 {[%emt 0:08:47]} 18. Nf4 {[%emt 0:03:52]} Nf7 {[%emt 0:05:28]} 19. Nxf7+ {[%emt 0:11:24]} Rxf7 {[%emt 0:00:13]} 20. Nd3 {[%emt 0:01:00]} a6 {[%emt 0:04:30]} 21. Ne5 {[%emt 0:00:08]} Re7 {[%emt 0:02:16]} 22. Be2 {[%emt 0:02:35]} Bd7 {[%emt 0:03:59]} 23. Qc3 {[%emt 0:05:48]} Be8 {[%emt 0:05:55]} 24. Qc5 {[%emt 0:06:09]} Qd8 {[%emt 0:01:47]} 25. h3 {[%emt 0:04:53]} Rc8 {[%emt 0:00:52]} 26. Qb4 {[%emt 0:00:34]} Rb8 {[%emt 0:06:54]} 27. Rc7 {[%emt 0:04:27]} Nd7 {[%emt 0:04:38]} 28. Qd6 {[%emt 0:00:54]} Kg8 {[%emt 0:01:36]} 29. Bxa6 {[%emt 0:03:12]} Nxe5 {[%emt 0:01:46]} 30. Qxd8 {[%emt 0:00:06]} Rxd8 {[%emt 0:00:08]} 31. Rxe7 {[%emt 0:00:08]} Nf7 {[%emt 0:01:30]} 32. Bxb7 {[%emt 0:00:45]} Nd6 {[%emt 0:00:28]} 33. Rcc7 {[%emt 0:00:48]} Nxb7 {[%emt 0:00:42]} 34. Rxg7+ {[%emt 0:00:11]} Kh8 {[%emt 0:00:06]} 35. Rxh7+ {[%emt 0:00:06]} Kg8 {[%emt 0:00:04]} 36. Rxb7 {[%emt 0:00:07]} Rc8 {[%emt 0:00:15]} 37. h4 {[%emt 0:00:51]} Rd8 {[%emt 0:00:11]} 38. h5 {[%emt 0:00:11]} Rc8 {[%emt 0:00:05]} 39. h6 {[%emt 0:00:15]} Rd8 {[%emt 0:00:02]} 40. Rbg7+ {[%emt 0:00:00]} Kf8 {[%emt 0:00:00]} 41. Rh8# {[%emt 0:00:11]} 1-0